[Event "*** MasterClass Titled Tuesday Blitz"]
[Site "Chess.com"]
[Date "2017.12.05"]
[Round "6"]
[White "Jumbo"]
[Black "champ2005"]
[Result "1-0"]
[WhiteElo "2491"]
[BlackElo "2435"]
[TimeControl "180+2"]
[EndTime "15:34:06 PST"]
[Termination "Jumbo won by resignation"]

1. e4 {[%clk 0:02:54.9]} 1... c6 {[%clk 0:03:01.1]} 2. Nf3 {[%clk 0:02:56.4]}
2... d5 {[%clk 0:03:02.2]} 3. Nc3 {[%clk 0:02:58.1]} 3... Nf6 {[%clk 0:03:03.4]}
4. e5 {[%clk 0:02:58.4]} 4... Ne4 {[%clk 0:03:04.2]} 5. Ne2 {[%clk 0:03:00]}
5... Qb6 {[%clk 0:03:05.6]} 6. d4 {[%clk 0:03:01.6]} 6... e6 {[%clk 0:03:07]} 7.
Ng3 {[%clk 0:03:02.6]} 7... c5 {[%clk 0:03:07.4]} 8. Bd3 {[%clk 0:02:52.6]} 8...
Nxg3 {[%clk 0:03:04]} 9. hxg3 {[%clk 0:02:53.9]} 9... cxd4 {[%clk 0:03:04.6]}
10. Nxd4 {[%clk 0:02:41.9]} 10... Bc5 {[%clk 0:03:03.6]} 11. Rh4 {[%clk
0:02:08.1]} 11... Nc6 {[%clk 0:03:02.3]} 12. Bb5 {[%clk 0:02:04.2]} 12... Bd7
{[%clk 0:01:59.8]} 13. Bxc6 {[%clk 0:02:02.6]} 13... bxc6 {[%clk 0:02:01.3]} 14.
c3 {[%clk 0:02:00]} 14... Bxd4 {[%clk 0:01:57.9]} 15. Rxd4 {[%clk 0:01:59.9]}
15... Qc7 {[%clk 0:01:42.8]} 16. Qe2 {[%clk 0:01:59]} 16... h6 {[%clk
0:01:15.6]} 17. Rh4 {[%clk 0:01:52.5]} 17... c5 {[%clk 0:01:12.1]} 18. g4 {[%clk
0:01:45.9]} 18... Rb8 {[%clk 0:01:02.4]} 19. Rh5 {[%clk 0:01:38.7]} 19... Bb5
{[%clk 0:00:59.2]} 20. Qe3 {[%clk 0:01:37.8]} 20... d4 {[%clk 0:00:47.2]} 21.
Qg3 {[%clk 0:01:37.2]} 21... dxc3 {[%clk 0:00:43.4]} 22. Qxc3 {[%clk 0:01:37.2]}
22... Qc6 {[%clk 0:00:42.8]} 23. f3 {[%clk 0:01:33.3]} 23... Rd8 {[%clk
0:00:40]} 24. Be3 {[%clk 0:01:22]} 24... Rd5 {[%clk 0:00:24.6]} 25. Rc1 {[%clk
0:01:16.4]} 25... O-O {[%clk 0:00:16.2]} 26. Bxc5 {[%clk 0:00:59.6]} 26... Rc8
{[%clk 0:00:15.9]} 27. Bxa7 {[%clk 0:00:49.1]} 27... Qxc3+ {[%clk 0:00:16.8]}
28. Rxc3 {[%clk 0:00:49.4]} 28... Rxc3 {[%clk 0:00:14.9]} 29. bxc3 {[%clk
0:00:50.8]} 29... Bc4 {[%clk 0:00:16.6]} 30. Bd4 {[%clk 0:00:49.2]} 30... Ra5
{[%clk 0:00:17.6]} 31. g5 {[%clk 0:00:43]} 31... hxg5 {[%clk 0:00:16.1]} 32.
Rxg5 {[%clk 0:00:44]} 32... Rxa2 {[%clk 0:00:17.1]} 33. Bc5 {[%clk 0:00:44.7]}
33... Re2+ {[%clk 0:00:16.9]} 34. Kd1 {[%clk 0:00:44.8]} 34... Ra2 {[%clk
0:00:18]} 35. Be7 {[%clk 0:00:45.1]} 35... Kh7 {[%clk 0:00:16.6]} 36. Bf8 {[%clk
0:00:44.5]} 36... g6 {[%clk 0:00:10.5]} 37. Be7 {[%clk 0:00:44.3]} 37... Ra1+
{[%clk 0:00:06.4]} 38. Kd2 {[%clk 0:00:44.6]} 38... Rh1 {[%clk 0:00:07.2]} 39.
Ke3 {[%clk 0:00:44.6]} 39... Bd5 {[%clk 0:00:06.8]} 40. Rg4 {[%clk 0:00:40.8]}
40... Kg8 {[%clk 0:00:06.5]} 41. Rb4 {[%clk 0:00:39.1]} 41... Re1+ {[%clk
0:00:04.1]} 42. Kf2 {[%clk 0:00:35.8]} 42... Rd1 {[%clk 0:00:02.8]} 43. Rb8+
{[%clk 0:00:34.2]} 43... Kh7 {[%clk 0:00:04.1]} 44. Bf6 {[%clk 0:00:35]} 44...
g5 {[%clk 0:00:05.5]} 45. Rc8 {[%clk 0:00:17.4]} 45... Rc1 {[%clk 0:00:05.7]}
46. g4 {[%clk 0:00:16.7]} 46... Rc2+ {[%clk 0:00:06.6]} 47. Ke3 {[%clk 0:00:18]}
47... Rc1 {[%clk 0:00:07.4]} 48. Rf8 {[%clk 0:00:17.9]} 48... Kg6 {[%clk
0:00:07.7]} 49. Rg8+ {[%clk 0:00:18.7]} 49... Kh7 {[%clk 0:00:08.4]} 50. Rxg5
{[%clk 0:00:19.5]} 50... Rf1 {[%clk 0:00:08.6]} 51. Rh5+ {[%clk 0:00:20.9]}
51... Kg6 {[%clk 0:00:09.3]} 52. Rh3 {[%clk 0:00:22.5]} 52... Rc1 {[%clk
0:00:09.9]} 53. Kd4 {[%clk 0:00:20.1]} 53... Rd1+ {[%clk 0:00:11.2]} 54. Ke3
{[%clk 0:00:20.2]} 54... Rc1 {[%clk 0:00:12.1]} 55. Kf4 {[%clk 0:00:20.5]} 55...
Rxc3 {[%clk 0:00:12.1]} 56. g5 {[%clk 0:00:19.7]} 56... Rc4+ {[%clk 0:00:13.3]}
57. Ke3 {[%clk 0:00:21.1]} 57... Kf5 {[%clk 0:00:14.2]} 58. Rh7 {[%clk
0:00:18.1]} 58... Rc3+ {[%clk 0:00:15.3]} 59. Kd4 {[%clk 0:00:19.7]} 59... Rxf3
{[%clk 0:00:16.2]} 60. Rxf7 {[%clk 0:00:21.3]} 60... Kg6 {[%clk 0:00:17]} 61.
Rg7+ {[%clk 0:00:21.8]} 61... Kh5 {[%clk 0:00:18.4]} 62. Kc5 {[%clk 0:00:23]}
62... Rc3+ {[%clk 0:00:16.6]} 63. Kd6 {[%clk 0:00:24.4]} 63... Rc6+ {[%clk
0:00:17.6]} 64. Kd7 {[%clk 0:00:24.9]} 64... Ra6 {[%clk 0:00:18.6]} 65. Rh7+
{[%clk 0:00:26.2]} 65... Kg6 {[%clk 0:00:19.5]} 66. Rh6+ {[%clk 0:00:27.5]}
66... Kf5 {[%clk 0:00:20.9]} 67. g6 {[%clk 0:00:28.9]} 67... Ra7+ {[%clk
0:00:22.1]} 68. Kd6 {[%clk 0:00:29.5]} 68... Ra6+ {[%clk 0:00:23.4]} 69. Kc5
{[%clk 0:00:30.8]} 69... Rc6+ {[%clk 0:00:24.5]} 70. Kb5 {[%clk 0:00:32]} 70...
Rc8 {[%clk 0:00:25.1]} 71. g7 {[%clk 0:00:33.2]} 71... Bc6+ {[%clk 0:00:17.7]}
72. Kb6 {[%clk 0:00:33.5]} 1-0

[Event "*** MasterClass Titled Tuesday Blitz"]
[Site "Chess.com"]
[Date "2017.12.05"]
[Round "6"]
[White "Rsnr"]
[Black "ChessQueen"]
[Result "1/2-1/2"]
[WhiteElo "2630"]
[BlackElo "2599"]
[TimeControl "180+2"]
[EndTime "15:35:25 PST"]
[Termination "Game drawn - insufficient material"]

1. d4 {[%clk 0:03:01.2]} 1... Nf6 {[%clk 0:03:00.1]} 2. c4 {[%clk 0:03:02.7]}
2... e6 {[%clk 0:03:01]} 3. Nf3 {[%clk 0:03:03.6]} 3... Bb4+ {[%clk 0:03:01]} 4.
Nbd2 {[%clk 0:03:04.1]} 4... O-O {[%clk 0:03:01.1]} 5. a3 {[%clk 0:03:04.9]}
5... Be7 {[%clk 0:03:02]} 6. e4 {[%clk 0:03:05.7]} 6... d6 {[%clk 0:03:03.3]} 7.
Bd3 {[%clk 0:03:06.4]} 7... e5 {[%clk 0:03:04]} 8. d5 {[%clk 0:03:07.4]} 8...
Nbd7 {[%clk 0:03:01]} 9. O-O {[%clk 0:03:07.8]} 9... a5 {[%clk 0:03:01.6]} 10.
b3 {[%clk 0:03:08.6]} 10... Nh5 {[%clk 0:02:55.7]} 11. Bc2 {[%clk 0:03:05.3]}
11... Nf4 {[%clk 0:02:49.4]} 12. Re1 {[%clk 0:03:02.2]} 12... Nc5 {[%clk
0:02:44.3]} 13. Nf1 {[%clk 0:03:03]} 13... f5 {[%clk 0:02:28.3]} 14. exf5 {[%clk
0:03:01.5]} 14... Bxf5 {[%clk 0:02:27.9]} 15. Bxf4 {[%clk 0:02:57.9]} 15... Bxc2
{[%clk 0:02:27.7]} 16. Qxc2 {[%clk 0:02:59.8]} 16... Rxf4 {[%clk 0:02:27.4]} 17.
b4 {[%clk 0:02:59.9]} 17... Nd7 {[%clk 0:02:25.2]} 18. N3d2 {[%clk 0:02:57.5]}
18... Qf8 {[%clk 0:02:10.7]} 19. f3 {[%clk 0:02:57.6]} 19... Rh4 {[%clk
0:01:34.7]} 20. Ng3 {[%clk 0:02:40.5]} 20... g6 {[%clk 0:01:35]} 21. Nge4 {[%clk
0:02:25.1]} 21... Qh6 {[%clk 0:01:35.5]} 22. h3 {[%clk 0:02:24.9]} 22... Rf4
{[%clk 0:01:25.8]} 23. c5 {[%clk 0:02:07.1]} 23... Nf8 {[%clk 0:01:14]} 24. cxd6
{[%clk 0:02:01.4]} 24... Bxd6 {[%clk 0:01:14.4]} 25. Nxd6 {[%clk 0:01:56]} 25...
cxd6 {[%clk 0:01:15.2]} 26. Ne4 {[%clk 0:01:57.9]} 26... Qg7 {[%clk 0:01:04.5]}
27. Rac1 {[%clk 0:01:28.6]} 27... axb4 {[%clk 0:01:04.1]} 28. axb4 {[%clk
0:01:30.5]} 28... Qd7 {[%clk 0:00:59.7]} 29. Qc7 {[%clk 0:01:27.2]} 29... Rd8
{[%clk 0:00:44.1]} 30. Qxd7 {[%clk 0:01:14.1]} 30... Nxd7 {[%clk 0:00:43.5]} 31.
Rc7 {[%clk 0:01:13.8]} 31... Nb6 {[%clk 0:00:44.3]} 32. Rd1 {[%clk 0:01:10.4]}
32... Rf7 {[%clk 0:00:45.2]} 33. Rc2 {[%clk 0:00:51.3]} 33... h6 {[%clk
0:00:34]} 34. Kf2 {[%clk 0:00:52.4]} 34... Kg7 {[%clk 0:00:34]} 35. Ke2 {[%clk
0:00:52.8]} 35... Rfd7 {[%clk 0:00:31.5]} 36. Rdd2 {[%clk 0:00:30.1]} 36... Ra8
{[%clk 0:00:30.4]} 37. Nc3 {[%clk 0:00:27.1]} 37... Kf7 {[%clk 0:00:24.9]} 38.
Rc1 {[%clk 0:00:21.9]} 38... Rc7 {[%clk 0:00:23.4]} 39. Rdc2 {[%clk 0:00:19.3]}
39... Rac8 {[%clk 0:00:21.7]} 40. Kd3 {[%clk 0:00:19.6]} 40... Ke7 {[%clk
0:00:22.5]} 41. Ra1 {[%clk 0:00:15.5]} 41... Rc4 {[%clk 0:00:23]} 42. Rb1 {[%clk
0:00:15.4]} 42... Kd7 {[%clk 0:00:19.4]} 43. Rbb2 {[%clk 0:00:16.7]} 43... Rd4+
{[%clk 0:00:19.1]} 44. Ke2 {[%clk 0:00:17.8]} 44... Nxd5 {[%clk 0:00:17.2]} 45.
Nxd5 {[%clk 0:00:19.4]} 45... Rxd5 {[%clk 0:00:18.5]} 46. Rxc8 {[%clk
0:00:20.1]} 46... Kxc8 {[%clk 0:00:19.5]} 47. Rc2+ {[%clk 0:00:21.8]} 47... Kd7
{[%clk 0:00:20.7]} 48. Rc4 {[%clk 0:00:18]} 48... Rb5 {[%clk 0:00:21.6]} 49. Rg4
{[%clk 0:00:17.4]} 49... g5 {[%clk 0:00:21.5]} 50. h4 {[%clk 0:00:18.7]} 50...
gxh4 {[%clk 0:00:21.2]} 51. Rxh4 {[%clk 0:00:20.6]} 51... h5 {[%clk 0:00:20.1]}
52. Kd3 {[%clk 0:00:21.5]} 52... Rd5+ {[%clk 0:00:15.5]} 53. Kc3 {[%clk
0:00:22.1]} 53... Rd1 {[%clk 0:00:14.5]} 54. Rxh5 {[%clk 0:00:23.5]} 54... Rg1
{[%clk 0:00:15.4]} 55. Rg5 {[%clk 0:00:25.1]} 55... Kc6 {[%clk 0:00:16.6]} 56.
Rg7 {[%clk 0:00:24.4]} 56... b5 {[%clk 0:00:17.7]} 57. Rg8 {[%clk 0:00:22.1]}
57... Rc1+ {[%clk 0:00:17.5]} 58. Kd3 {[%clk 0:00:22.9]} 58... Rb1 {[%clk
0:00:11.1]} 59. Kc3 {[%clk 0:00:24.1]} 59... Rg1 {[%clk 0:00:11.5]} 60. Kd3
{[%clk 0:00:24.7]} 60... Kd5 {[%clk 0:00:09.9]} 61. Rg7 {[%clk 0:00:23.6]} 61...
Rb1 {[%clk 0:00:09.9]} 62. Kc3 {[%clk 0:00:24.4]} 62... Rc1+ {[%clk 0:00:11.5]}
63. Kd3 {[%clk 0:00:25.8]} 63... Rc4 {[%clk 0:00:12.5]} 64. g4 {[%clk 0:00:17]}
64... Rxb4 {[%clk 0:00:13.3]} 65. g5 {[%clk 0:00:18.7]} 65... Rb3+ {[%clk
0:00:14.4]} 66. Ke2 {[%clk 0:00:20.3]} 66... Ke6 {[%clk 0:00:15.6]} 67. g6
{[%clk 0:00:17.5]} 67... Kf6 {[%clk 0:00:15.1]} 68. Rg8 {[%clk 0:00:19]} 68...
d5 {[%clk 0:00:15.1]} 69. Rd8 {[%clk 0:00:17]} 69... Kxg6 {[%clk 0:00:15.1]} 70.
Rxd5 {[%clk 0:00:18.1]} 70... Kf5 {[%clk 0:00:16.6]} 71. Rd8 {[%clk 0:00:18.1]}
71... Rc3 {[%clk 0:00:16.8]} 72. Rb8 {[%clk 0:00:18.6]} 72... Rc5 {[%clk
0:00:17.2]} 73. Ke3 {[%clk 0:00:20.2]} 73... Ke6 {[%clk 0:00:15.3]} 74. Ke4
{[%clk 0:00:15.1]} 74... Rc4+ {[%clk 0:00:16.3]} 75. Ke3 {[%clk 0:00:16.7]}
75... b4 {[%clk 0:00:15.8]} 76. Kd3 {[%clk 0:00:12.8]} 76... Rd4+ {[%clk
0:00:17]} 77. Ke3 {[%clk 0:00:14]} 77... Rh4 {[%clk 0:00:10.9]} 78. Kd3 {[%clk
0:00:13.6]} 78... Rd4+ {[%clk 0:00:10.6]} 79. Ke3 {[%clk 0:00:15.1]} 79... Kd5
{[%clk 0:00:09.8]} 80. Rd8+ {[%clk 0:00:11.6]} 80... Kc4 {[%clk 0:00:10.3]} 81.
Rc8+ {[%clk 0:00:13.3]} 81... Kb3 {[%clk 0:00:11.3]} 82. Re8 {[%clk 0:00:14.5]}
82... Kc3 {[%clk 0:00:09.1]} 83. Rxe5 {[%clk 0:00:06.9]} 83... b3 {[%clk
0:00:09.7]} 84. Rc5+ {[%clk 0:00:06.6]} 84... Rc4 {[%clk 0:00:06.9]} 85. Rxc4+
{[%clk 0:00:06.2]} 85... Kxc4 {[%clk 0:00:08.4]} 86. Kd2 {[%clk 0:00:08.1]}
86... Kd4 {[%clk 0:00:08.4]} 87. Kc1 {[%clk 0:00:09]} 87... Ke3 {[%clk
0:00:09.6]} 88. Kb2 {[%clk 0:00:10.4]} 88... Kxf3 {[%clk 0:00:11]} 89. Kxb3
{[%clk 0:00:12.1]} 1/2-1/2

[Event "*** MasterClass Titled Tuesday Blitz"]
[Site "Chess.com"]
[Date "2017.12.05"]
[Round "7"]
[White "Angry_Serb"]
[Black "saraiva_80"]
[Result "1-0"]
[WhiteElo "2338"]
[BlackElo "1355"]
[TimeControl "180+2"]
[EndTime "15:39:22 PST"]
[Termination "Angry_Serb won by resignation"]

1. e4 {[%clk 0:03:01.9]} 1... c5 {[%clk 0:02:57.4]} 2. Nc3 {[%clk 0:03:02.1]}
2... d6 {[%clk 0:02:57]} 3. Nge2 {[%clk 0:03:02.7]} 3... Nf6 {[%clk 0:02:57.4]}
4. h3 {[%clk 0:03:03.1]} 4... a6 {[%clk 0:02:57.1]} 5. g4 {[%clk 0:03:04.5]}
5... Qc7 {[%clk 0:02:57.4]} 6. Bg2 {[%clk 0:03:05.8]} 6... e6 {[%clk 0:02:56.3]}
7. g5 {[%clk 0:03:06]} 7... Nfd7 {[%clk 0:02:55.4]} 8. f4 {[%clk 0:03:07.5]}
8... Be7 {[%clk 0:02:55.6]} 9. d3 {[%clk 0:03:08.3]} 9... b5 {[%clk 0:02:54.5]}
10. d4 {[%clk 0:03:08.4]} 10... cxd4 {[%clk 0:02:55]} 11. Qxd4 {[%clk
0:03:08.9]} 11... Bb7 {[%clk 0:02:56.6]} 12. Qxg7 {[%clk 0:03:09.1]} 12... Rf8
{[%clk 0:02:46.3]} 13. Qxh7 {[%clk 0:03:10.5]} 13... b4 {[%clk 0:02:43.5]} 14.
Nd1 {[%clk 0:03:10.8]} 14... Qxc2 {[%clk 0:02:42.7]} 15. O-O {[%clk 0:03:09.5]}
15... Nc5 {[%clk 0:02:40.5]} 16. Ng3 {[%clk 0:03:04.7]} 16... d5 {[%clk
0:02:38.8]} 17. Ne3 {[%clk 0:03:02.9]} 17... Qd3 {[%clk 0:02:33.6]} 18. Rd1
{[%clk 0:03:04.2]} 18... Qb5 {[%clk 0:02:25.6]} 19. exd5 {[%clk 0:03:05.7]}
19... exd5 {[%clk 0:02:21.4]} 20. Nxd5 {[%clk 0:03:03.4]} 20... Nbd7 {[%clk
0:02:12.8]} 21. Nc7+ {[%clk 0:03:03.7]} 21... Kd8 {[%clk 0:02:09.6]} 22. Nxb5
{[%clk 0:03:05.6]} 22... axb5 {[%clk 0:02:09.6]} 23. Bxb7 {[%clk 0:03:06.5]}
23... Nxb7 {[%clk 0:02:08.2]} 24. Qf5 {[%clk 0:03:08.1]} 24... Bc5+ {[%clk
0:02:05.8]} 25. Kg2 {[%clk 0:03:08.7]} 25... Nd6 {[%clk 0:01:51.8]} 26. Rxd6
{[%clk 0:03:09.5]} 26... Bxd6 {[%clk 0:01:52]} 27. Qd5 {[%clk 0:03:11.4]} 27...
Ke7 {[%clk 0:01:47.8]} 28. Nf5+ {[%clk 0:03:12.3]} 1-0

[Event "*** MasterClass Titled Tuesday Blitz"]
[Site "Chess.com"]
[Date "2017.12.05"]
[Round "7"]
[White "fardinkhan46"]
[Black "ZalupiNputiN"]
[Result "0-1"]
[WhiteElo "1463"]
[BlackElo "2044"]
[TimeControl "180+2"]
[EndTime "15:40:13 PST"]
[Termination "ZalupiNputiN won by checkmate"]

1. e4 {[%clk 0:02:57.8]} 1... c5 {[%clk 0:03:00.1]} 2. d4 {[%clk 0:02:58.2]}
2... cxd4 {[%clk 0:03:01.3]} 3. Qxd4 {[%clk 0:02:58.6]} 3... Nc6 {[%clk
0:03:02.1]} 4. Qe3 {[%clk 0:02:55.9]} 4... Nf6 {[%clk 0:02:59.8]} 5. e5 {[%clk
0:02:54.9]} 5... Ng4 {[%clk 0:02:58]} 6. Qf4 {[%clk 0:02:55]} 6... Ngxe5 {[%clk
0:02:56.3]} 7. Bc4 {[%clk 0:02:52.9]} 7... g5 {[%clk 0:02:45.2]} 8. Qe4 {[%clk
0:02:45.3]} 8... Nxc4 {[%clk 0:02:06.9]} 9. Qxc4 {[%clk 0:02:45.7]} 9... e6
{[%clk 0:02:04.1]} 10. Qc3 {[%clk 0:02:44.2]} 10... Bb4 {[%clk 0:02:05]} 11. Bd2
{[%clk 0:02:37.6]} 11... Bxc3 {[%clk 0:02:05.8]} 12. Bxc3 {[%clk 0:02:39.5]}
12... e5 {[%clk 0:02:04.2]} 13. Nf3 {[%clk 0:02:38.6]} 13... f6 {[%clk
0:02:05.3]} 14. O-O {[%clk 0:02:37.4]} 14... O-O {[%clk 0:02:06.2]} 15. a3
{[%clk 0:02:36.7]} 15... d5 {[%clk 0:02:05.4]} 16. Bb4 {[%clk 0:02:37.3]} 16...
Nxb4 {[%clk 0:02:06.2]} 17. axb4 {[%clk 0:02:39.2]} 17... d4 {[%clk 0:02:07.1]}
18. c3 {[%clk 0:02:39.7]} 18... d3 {[%clk 0:02:07.8]} 19. Rd1 {[%clk 0:02:34.3]}
19... Bf5 {[%clk 0:02:07.9]} 20. Nbd2 {[%clk 0:02:33.9]} 20... Qe8 {[%clk
0:01:57.4]} 21. Ra3 {[%clk 0:02:33.9]} 21... Qh5 {[%clk 0:01:55.2]} 22. h3
{[%clk 0:02:29.7]} 22... g4 {[%clk 0:01:55.8]} 23. hxg4 {[%clk 0:02:28.1]} 23...
Bxg4 {[%clk 0:01:56.3]} 24. c4 {[%clk 0:02:21.8]} 24... e4 {[%clk 0:01:54.2]}
25. Nxe4 {[%clk 0:02:18.3]} 25... Bxf3 {[%clk 0:01:55.4]} 26. gxf3 {[%clk
0:02:14.8]} 26... Qxf3 {[%clk 0:01:52.6]} 27. Nc3 {[%clk 0:02:16.7]} 27... Kf7
{[%clk 0:01:49.6]} 28. Raa1 {[%clk 0:02:14]} 28... Rg8+ {[%clk 0:01:50.9]} 29.
Kf1 {[%clk 0:02:12.9]} 29... Rae8 {[%clk 0:01:49.7]} 30. Re1 {[%clk 0:02:10.2]}
30... Qh1# {[%clk 0:01:49.8]} 0-1

[Event "*** MasterClass Titled Tuesday Blitz"]
[Site "Chess.com"]
[Date "2017.12.05"]
[Round "7"]
[White "Margency"]
[Black "juniortay"]
[Result "0-1"]
[WhiteElo "2478"]
[BlackElo "2323"]
[TimeControl "180+2"]
[EndTime "15:40:46 PST"]
[Termination "juniortay won by resignation"]

1. e4 {[%clk 0:03:01.9]} 1... e5 {[%clk 0:02:58.3]} 2. Nf3 {[%clk 0:03:02.7]}
2... Nf6 {[%clk 0:02:59.2]} 3. Nxe5 {[%clk 0:03:03]} 3... Nc6 {[%clk 0:03:00.4]}
4. Nxc6 {[%clk 0:03:03.5]} 4... dxc6 {[%clk 0:03:02.3]} 5. Nc3 {[%clk
0:03:04.1]} 5... Bc5 {[%clk 0:03:03.7]} 6. Be2 {[%clk 0:02:58.6]} 6... Qd4
{[%clk 0:03:04.6]} 7. O-O {[%clk 0:02:59.3]} 7... h5 {[%clk 0:03:06]} 8. d3
{[%clk 0:02:58]} 8... Ng4 {[%clk 0:03:07.1]} 9. Qe1 {[%clk 0:02:37.3]} 9... Qe5
{[%clk 0:03:04.2]} 10. g3 {[%clk 0:02:32.3]} 10... h4 {[%clk 0:03:04.5]} 11.
Bxg4 {[%clk 0:02:28.1]} 11... Bxg4 {[%clk 0:03:04.1]} 12. Be3 {[%clk 0:02:29.5]}
12... Bf3 {[%clk 0:02:41.3]} 13. Bxc5 {[%clk 0:02:25.5]} 13... Qxc5 {[%clk
0:02:35.3]} 14. Qe3 {[%clk 0:02:11.2]} 14... Qh5 {[%clk 0:02:33.7]} 15. Qf4
{[%clk 0:02:10]} 15... hxg3 {[%clk 0:02:28.7]} 16. Qxg3 {[%clk 0:02:09.2]} 16...
Rh6 {[%clk 0:02:29]} 17. Rfe1 {[%clk 0:01:53.2]} 17... Rg6 {[%clk 0:02:26.6]}
18. Re3 {[%clk 0:01:54.5]} 18... Rxg3+ {[%clk 0:02:22.9]} 19. fxg3 {[%clk
0:01:55.7]} 19... O-O-O {[%clk 0:02:23.9]} 20. Rf1 {[%clk 0:01:55.7]} 20... Bg4
{[%clk 0:02:14.3]} 21. Rf4 {[%clk 0:01:54.8]} 21... Be6 {[%clk 0:02:11.8]} 22.
Re2 {[%clk 0:01:43.6]} 22... b5 {[%clk 0:02:07.2]} 23. a3 {[%clk 0:01:43.3]}
23... a5 {[%clk 0:02:06.5]} 24. b4 {[%clk 0:01:43.8]} 24... axb4 {[%clk
0:02:04.1]} 25. axb4 {[%clk 0:01:45.7]} 25... Kb7 {[%clk 0:02:04.5]} 26. Ref2
{[%clk 0:01:44.2]} 26... Qe5 {[%clk 0:02:00.3]} 27. Ne2 {[%clk 0:01:43.2]} 27...
Qb2 {[%clk 0:01:55.9]} 28. c3 {[%clk 0:01:40.5]} 28... Rxd3 {[%clk 0:01:53.8]}
29. Nd4 {[%clk 0:01:41.6]} 29... Qxc3 {[%clk 0:01:49.4]} 0-1

[Event "*** MasterClass Titled Tuesday Blitz"]
[Site "Chess.com"]
[Date "2017.12.05"]
[Round "7"]
[White "OparinGrigoriy"]
[Black "JSPrepz"]
[Result "1/2-1/2"]
[WhiteElo "2718"]
[BlackElo "2573"]
[TimeControl "180+2"]
[EndTime "15:40:59 PST"]
[Termination "Game drawn by repetition"]

1. Nf3 {[%clk 0:03:01.9]} 1... d5 {[%clk 0:02:55.9]} 2. g3 {[%clk 0:03:03.3]}
2... Nc6 {[%clk 0:02:56.9]} 3. d4 {[%clk 0:03:03.4]} 3... Bg4 {[%clk 0:02:57.9]}
4. Bg2 {[%clk 0:03:03.5]} 4... Qd7 {[%clk 0:02:59.2]} 5. c4 {[%clk 0:03:01]}
5... e6 {[%clk 0:02:58.5]} 6. cxd5 {[%clk 0:02:59.2]} 6... exd5 {[%clk
0:03:00.4]} 7. h3 {[%clk 0:02:58.7]} 7... Bf5 {[%clk 0:03:00.4]} 8. Nc3 {[%clk
0:02:58]} 8... O-O-O {[%clk 0:02:59.7]} 9. Bf4 {[%clk 0:02:54.4]} 9... Nf6
{[%clk 0:02:59]} 10. Rc1 {[%clk 0:02:55.1]} 10... Bd6 {[%clk 0:02:56.7]} 11. Ne5
{[%clk 0:02:55.6]} 11... Bxe5 {[%clk 0:02:51.8]} 12. Bxe5 {[%clk 0:02:55.4]}
12... Nxe5 {[%clk 0:02:35.6]} 13. dxe5 {[%clk 0:02:57.3]} 13... Ne4 {[%clk
0:02:36.8]} 14. Qd4 {[%clk 0:02:57.6]} 14... Kb8 {[%clk 0:02:33.8]} 15. O-O
{[%clk 0:02:23.3]} 15... c5 {[%clk 0:02:27.1]} 16. Qd1 {[%clk 0:02:09.4]} 16...
Nxc3 {[%clk 0:02:27.6]} 17. Rxc3 {[%clk 0:02:10.1]} 17... c4 {[%clk 0:02:20.3]}
18. g4 {[%clk 0:02:08.2]} 18... Be6 {[%clk 0:02:21.5]} 19. Qd4 {[%clk
0:02:06.8]} 19... h5 {[%clk 0:02:22]} 20. g5 {[%clk 0:02:07.5]} 20... f6 {[%clk
0:02:19.1]} 21. exf6 {[%clk 0:02:00.8]} 21... gxf6 {[%clk 0:02:20.2]} 22. gxf6
{[%clk 0:02:02.7]} 22... h4 {[%clk 0:02:20.2]} 23. f4 {[%clk 0:01:57.4]} 23...
Rhg8 {[%clk 0:02:15.1]} 24. f5 {[%clk 0:01:58.2]} 24... Bf7 {[%clk 0:02:10.6]}
25. Kh1 {[%clk 0:01:47]} 25... Ka8 {[%clk 0:02:10.7]} 26. Re3 {[%clk 0:01:42]}
26... Rde8 {[%clk 0:02:02.3]} 27. Rxe8+ {[%clk 0:01:43]} 27... Qxe8 {[%clk
0:02:00.5]} 28. e4 {[%clk 0:01:41.2]} 28... Rg3 {[%clk 0:01:55]} 29. e5 {[%clk
0:01:37.5]} 29... Qg8 {[%clk 0:01:55.2]} 30. e6 {[%clk 0:01:30.1]} 30... Rxg2
{[%clk 0:01:52.8]} 31. exf7 {[%clk 0:01:31]} 31... Rh2+ {[%clk 0:01:54]} 32.
Kxh2 {[%clk 0:01:21.9]} 32... Qg3+ {[%clk 0:01:55.9]} 33. Kh1 {[%clk 0:01:23.4]}
33... Qxh3+ {[%clk 0:01:57.6]} 34. Kg1 {[%clk 0:01:25.1]} 34... Qg3+ {[%clk
0:01:59.5]} 35. Kh1 {[%clk 0:01:26.8]} 35... Qh3+ {[%clk 0:02:01.4]} 36. Kg1
{[%clk 0:01:28.5]} 36... Qg3+ {[%clk 0:02:03.3]} 37. Kh1 {[%clk 0:01:29.8]}
37... Qh3+ {[%clk 0:02:05.2]} 1/2-1/2

[Event "*** MasterClass Titled Tuesday Blitz"]
[Site "Chess.com"]
[Date "2017.12.05"]
[Round "7"]
[White "Salem-AR"]
[Black "MITerryble"]
[Result "1-0"]
[WhiteElo "2815"]
[BlackElo "2665"]
[TimeControl "180+2"]
[EndTime "15:41:00 PST"]
[Termination "Salem-AR won by resignation"]

1. Nf3 {[%clk 0:03:01.9]} 1... Nf6 {[%clk 0:03:00.5]} 2. c4 {[%clk 0:03:00.4]}
2... e6 {[%clk 0:03:01]} 3. g3 {[%clk 0:02:59.5]} 3... b6 {[%clk 0:03:02]} 4.
Bg2 {[%clk 0:03:00.3]} 4... Bb7 {[%clk 0:03:03.9]} 5. O-O {[%clk 0:03:01.5]}
5... Be7 {[%clk 0:03:04.9]} 6. d4 {[%clk 0:03:02.7]} 6... O-O {[%clk 0:03:04.7]}
7. Re1 {[%clk 0:03:04.3]} 7... d5 {[%clk 0:03:02.8]} 8. cxd5 {[%clk 0:03:05.5]}
8... exd5 {[%clk 0:03:02.2]} 9. Nc3 {[%clk 0:03:06.8]} 9... Nbd7 {[%clk
0:02:56]} 10. Bf4 {[%clk 0:03:07]} 10... Nh5 {[%clk 0:02:53.3]} 11. Be3 {[%clk
0:03:03.9]} 11... c6 {[%clk 0:02:47.7]} 12. Qb3 {[%clk 0:03:02.7]} 12... Bd6
{[%clk 0:02:43.5]} 13. Rad1 {[%clk 0:03:02.7]} 13... Re8 {[%clk 0:02:43.6]} 14.
Bg5 {[%clk 0:03:03.7]} 14... f6 {[%clk 0:02:01.5]} 15. Bc1 {[%clk 0:03:03.7]}
15... f5 {[%clk 0:01:50.7]} 16. e4 {[%clk 0:02:48.4]} 16... fxe4 {[%clk
0:01:50.6]} 17. Nxe4 {[%clk 0:02:49.2]} 17... Be7 {[%clk 0:01:42.6]} 18. Bh3
{[%clk 0:02:45.4]} 18... Nf8 {[%clk 0:01:42.5]} 19. Ne5 {[%clk 0:02:40.6]} 19...
g6 {[%clk 0:01:20.3]} 20. Bh6 {[%clk 0:02:33.8]} 20... Ng7 {[%clk 0:01:17.1]}
21. Qf3 {[%clk 0:02:31.1]} 21... Nf5 {[%clk 0:00:13.6]} 22. Bxf5 {[%clk
0:02:30.7]} 22... gxf5 {[%clk 0:00:15.4]} 23. Qxf5 {[%clk 0:02:30]} 23... dxe4
{[%clk 0:00:08.9]} 24. Qf7+ {[%clk 0:02:30.8]} 1-0